fUST/lending_fUST_20240603
["ID","MTS","AMOUNT","RATE_DAILY","PERIOD"]
[328410781,1717361442254,-295.47511277,0.00026341,2]
[328410782,1717361442263,-1351.17833091,0.00026341,2]
[328410783,1717361442272,-2402.75654892,0.00026341,2]
[328410784,1717361442281,-1098.62540245,0.00026341,2]
[328410785,1717361442290,-155.27646197,0.00026341,2]
[328410786,1717361442299,-189.00366596,0.00026341,2]
[328410787,1717361442308,-300.38519711,0.00026341,2]
[328410788,1717361442317,-269.43312445,0.00026341,2]
[328410789,1717361442326,-163.41802342,0.00026341,2]
[328410790,1717361442335,-214.84176779,0.00026341,2]
[328410791,1717361442344,-155.38635448,0.00026341,2]
[328410792,1717361442354,-155.00155002,0.00026341,2]
[328410793,1717361442363,-158.1228892,0.00026341,2]
[328410794,1717361442372,-186.51869972,0.00026341,2]
[328410795,1717361442381,-500.0,0.00026342,2]
[328410796,1717361442390,-500.0,0.00026342,2]
[328410797,1717361442399,-488.34434114,0.00026342,2]
[328410798,1717361442408,-500.0,0.00026342,2]
[328410800,1717361442418,-187.68591663,0.00026342,2]
[328410801,1717361442427,-195.20167629,0.00026342,2]
[328410802,1717361442436,-534.48645011,0.00026342,2]
[328410803,1717361442445,-550.09760005,0.00026342,2]
[328410804,1717361442454,-500.0,0.00026342,2]
[328410805,1717361442463,-500.0,0.00026342,2]
[328410806,1717361442473,-500.0,0.00026342,2]
[328410807,1717361442482,-210.76167189,0.00026342,2]
[328410808,1717361442491,-2116.16628334,0.00026342,2]
[328410809,1717361442500,-2194.39954287,0.00026342,2]
[328410810,1717361442510,-500.0,0.00026343,2]
[328410812,1717361442519,-11448.73946284,0.00026343,7]
[328410814,1717361442527,-1217.6873876,0.00026343,7]
[328410815,1717361442536,-31430.98012482,0.00026343,30]
[328410818,1717361442550,-51307.96998142,0.00026343,30]
[328410820,1717361442562,-15322.21925606,0.00026343,30]
[328410822,1717361442574,-671.77936835,0.00026343,30]
[328410825,1717361442585,-896.0199674,0.00026343,30]
[328410827,1717361442596,-1365.82188577,0.00026343,30]
[328410828,1717361442607,-13045.11076764,0.00026343,30]
[328410831,1717361443291,-500.0,0.00025303,2]
[328410832,1717361443300,-8182.81303686,0.00026233,3]
[328410833,1717361446030,-500.49382646,0.00026233,3]
[328410935,1717362633069,-623.8675752,0.00022626,2]
[328410936,1717362633079,-166.666666,0.00022627,2]
[328410937,1717362633089,-154.9690062,0.00023,2]
[328410938,1717362633098,-2949.70545853,0.00023164,2]
[328410997,1717362638380,-637.70105023,0.00021064,2]
[328410999,1717362638390,-391.86528557,0.00023164,2]
[328411157,1717362641879,-608.09548811,0.00023164,2]
[328411158,1717362641891,-20940.33376779,0.00023164,2]
[328411159,1717362641900,-166.666666,0.00023244,2]
[328411160,1717362641909,-3023.88922332,0.00023409,2]
[328411274,1717362644111,-6.66424698,0.00023409,2]
[328411276,1717362644121,-206.69949084,0.00023707,2]
[328411278,1717362644131,-166.666666,0.00023861,2]
[328411279,1717362644140,-544.47880247,0.00024149,2]
[328411282,1717362644149,-200.0,0.00024249,2]
[328411284,1717362644158,-166.666666,0.00024478,2]
[328411286,1717362644168,-380.16143594,0.00024755,2]
[328411429,1717363737952,372.11026212,9.999e-05,2]
[328411430,1717363740802,-292.14570031,0.00019756,2]
[328411431,1717363740834,-1137.49756825,0.00019756,2]
[328411432,1717363754076,1099.33919907,0.00015,2]
[328411450,1717363832528,-189.96804994,0.00020749,2]
[328411452,1717363832538,-251.0477107,0.00020849,2]
[328411454,1717363832547,-2890.0324842,0.00020933,2]
[328411456,1717363832556,-164.793736,0.00020949,2]
[328411458,1717363832566,-384.54476096,0.00021026,2]
[328411460,1717363832577,-371.23283804,0.00021026,2]
[328411462,1717363832586,-425.13403349,0.00021309,2]
[328411464,1717363832595,-22892.94089772,0.00021334,2]
[328411465,1717363832604,-14778.13889743,0.00021335,2]
[328411466,1717363832615,-7990.90147527,0.00021335,2]
[328411467,1717363832623,-476.4189521,0.00021818,2]
[328411468,1717363832632,-166.666666,0.00021918,2]
[328411469,1717363832641,-270.0,0.00022,2]
[328411470,1717363832649,-623.8675752,0.000221,2]
[328411471,1717363832658,-270.0,0.00022192,2]
[328411472,1717363832667,-357.2556496,0.00022231,2]
[328411473,1717363832675,-166.666666,0.00022431,2]
[328411474,1717363832684,-166.666666,0.00022944,2]
[328411475,1717363832693,-476.4189521,0.00022963,2]
[328411476,1717363832702,-154.9690062,0.00023,2]
[328411477,1717363832711,-270.0,0.00023014,2]
[328411478,1717363832720,-357.25564958,0.00023271,2]
[328411479,1717363832729,-5337.98771213,0.00023409,2]
[328411480,1717363832738,-166.666666,0.00023456,2]
[328411481,1717363832747,-166.666666,0.00023969,2]
[328411482,1717363832755,-476.4189521,0.00024108,2]
[328411483,1717363832764,-275.0,0.00024164,2]
[328411484,1717363832774,-357.25564958,0.00024311,2]
[328411485,1717363832783,-300.0,0.00024344,2]
[328411486,1717363832792,-166.666666,0.00024482,2]
[328411487,1717363832800,-4233.16048784,0.00024618,2]
[328411488,1717363832810,-3986.84838005,0.00024755,2]
[328411489,1717363832819,-224.89839615,0.00024755,2]
[328411491,1717363832829,-461.74457998,0.00024755,2]
[328411494,1717363832839,-401.65010367,0.00025,2]
[328411495,1717363832848,-154.9690062,0.00025,2]
[328411497,1717363832858,-864.65523561,0.00025024,2]
[328411499,1717363832867,-476.4189521,0.00025253,2]
[328411501,1717363832876,-357.25564958,0.0002535,2]
[328411503,1717363832885,-150.96980604,0.00025353,2]
[328411505,1717363832895,-300.0,0.000255,2]
[328411507,1717363832904,-270.0,0.00025775,2]
[328411509,1717363832913,-964.32254596,0.00026078,2]
[328411510,1717363832923,-761.95780481,0.00026233,2]
[328411511,1717363832933,-221.08334038,0.00026233,2]
[328411512,1717363832983,-236.04918948,0.00026233,2]
[328411513,1717363832993,-797.97021052,0.00026243,2]
[328411525,1717363838478,-1396.77509786,0.00021335,7]
[328411526,1717363838489,-93.61669893,0.00021335,7]
[328411527,1717363838499,-1202.02978948,0.00026243,2]
[328411528,1717363838508,-153.0,0.00026247,2]
[328411529,1717363838517,-306.0,0.00026247,2]
[328411530,1717363838527,-306.0,0.00026247,2]
[328411531,1717363838536,-306.0,0.00026247,2]
[328411532,1717363838545,-160.0,0.000263,2]
[328411533,1717363838555,-533.0,0.000263,2]
[328411534,1717363838564,-311.08953801,0.00026309,2]
[328411535,1717363838575,-114.04449548,0.00026309,2]
[328411536,1717363838584,-343.39532629,0.0002631,2]
[328411537,1717363838593,-3758.79207315,0.00026315,2]
[328411538,1717363841767,-3603.80712053,0.00026315,2]
[328411539,1717363841778,-2941.48611343,0.00026333,3]
[328411682,1717363843829,-484.40047985,0.00024215,2]
[328411683,1717363843838,-14859.26388657,0.00026333,3]
[328411684,1717363843847,-761.75049726,0.00026341,2]
[328411685,1717363843856,-154.9690062,0.00026341,2]
[328411686,1717363843865,-262.88155129,0.00026341,2]
[328411687,1717363843873,-309.87605268,0.00026341,2]
[328411688,1717363843882,-1498.85069507,0.00026341,2]
[328411901,1717363850384,461.74457998,0.0002,2]
[328411902,1717363850437,282.07864343,0.0002,2]
[328411903,1717363866367,551.73466975,0.0002,2]
[328411906,1717364748354,322.93365323,0.000189,2]
[328411922,1717365032687,-1766.85866458,0.00020999,2]
[328412393,1717365038688,-4943.05625597,0.00020999,2]
[328412394,1717365038735,-1199.38821808,0.00020999,2]
[328412395,1717365038745,-3986.84838005,0.00021,2]
[328412396,1717365038755,-22892.94089772,0.00021,2]
[328412397,1717365038764,-238.20947605,0.000217,2]
[328412398,1717365038989,-3000.0,0.000218,2]
[328412399,1717365038999,-3000.0,0.0002181,2]
[328412400,1717365039008,-3000.0,0.0002182,2]
[328412401,1717365039018,-5062.05788763,0.0002183,2]
[328412491,1717365042038,-682.92980837,0.0002183,2]
[328412492,1717365042047,-238.20947605,0.00022862,2]
[328412493,1717365042056,-154.9690062,0.00023123,2]
[328412494,1717365042065,-166.666666,0.00023124,2]
[328412495,1717365042075,-377.888799,0.00023478,2]
[328412496,1717365042085,-166.666666,0.00023755,2]
[328412498,1717365042094,-322.93365323,0.000239,2]
[328412500,1717365042103,-238.20947605,0.00024024,2]
[328412502,1717365042112,-170.60695007,0.00024133,2]
[328412504,1717365042121,-166.666666,0.00024385,2]
[328412505,1717365042130,-170.60695005,0.00024838,2]
[328412506,1717365042139,-761.95780481,0.00025,2]
[328412507,1717365042148,-457.13252986,0.00025,2]
[328412508,1717365042157,-401.65010367,0.00025,2]
[328412509,1717365042166,-191.57230066,0.00025,2]
[328412510,1717365042175,-154.9690062,0.00025,2]
[328412511,1717365042184,-166.666666,0.00025016,2]
[328412512,1717365042193,-238.20947605,0.00025186,2]
[328412513,1717365042202,-151.0,0.00025306,7]
[328412514,1717365042211,-150.95471359,0.00025437,2]
[328412515,1717365042221,-300.0,0.000255,2]
[328412516,1717365042231,-170.60695005,0.00025543,2]
[328412517,1717365042240,-166.666666,0.00025646,2]
[328412518,1717365042249,-151.0,0.00025825,7]
[328412519,1717365042258,-166.666666,0.00026,2]
[328412520,1717365042267,-4233.16048784,0.00026083,2]
[328412521,1717365042276,-2000.0,0.00026243,2]
[328412522,1717365042287,-170.60695005,0.00026248,2]
[328412523,1717365042296,-166.666666,0.00026277,2]
[328412524,1717365042305,-160.0,0.000263,2]
[328412525,1717365042314,-506.0,0.000263,2]
[328412526,1717365042323,-500.0,0.0002633,2]
[328412527,1717365042333,-500.0,0.0002633,2]
[328412528,1717365042342,-500.0,0.0002633,2]
[328412529,1717365042351,-500.0,0.0002633,2]
[328412530,1717365042360,-500.0,0.0002633,2]
[328412531,1717365042369,-500.0,0.0002633,2]
[328412532,1717365042379,-552.01464437,0.0002633,2]
[328412533,1717365042388,-500.0,0.0002633,2]
[328412534,1717365042397,-500.0,0.0002633,2]
[328412535,1717365042406,-500.0,0.0002633,2]
[328412536,1717365042415,-500.0,0.0002633,2]
[328412537,1717365042424,-500.0,0.0002633,2]
[328412538,1717365042433,-500.0,0.0002633,2]
[328412539,1717365042443,-500.0,0.0002633,2]
[328412540,1717365042452,-500.0,0.0002633,2]
[328412541,1717365042461,-500.0,0.0002633,2]
[328412542,1717365042469,-500.0,0.0002633,2]
[328412543,1717365042479,-500.0,0.0002633,2]
[328412544,1717365042488,-14833.95,0.00026333,3]
[328412545,1717365042497,-175.29599254,0.00026341,2]
[328412546,1717365042506,-155.18330215,0.00026341,2]
[328412547,1717365042514,-1102.70505763,0.00026341,2]
[328412548,1717365042523,-918.57742252,0.00026341,2]
[328412549,1717365042533,-221.67488627,0.00026341,2]
[328412550,1717365042542,-522.22886781,0.00026341,2]
[328412551,1717365042551,-1011.75504724,0.00026341,2]
[328412552,1717365042562,-1153.28512896,0.00026341,2]
[328412553,1717365042571,-380.0,0.00026341,2]
[328412554,1717365042581,-361.65030431,0.00026341,2]
[328412555,1717365042591,-752.43065176,0.00026341,2]
[328412556,1717365042600,-1352.47027716,0.00026341,2]
[328412557,1717365042609,-309.79869354,0.00026341,2]
[328412558,1717365042618,-520.81611433,0.00026341,2]
[328412559,1717365042628,-396.16927428,0.00026341,2]
[328412560,1717365042637,-2118.00525841,0.00026341,2]
[328412561,1717365042646,-274.57204811,0.00026341,2]
[328412562,1717365042655,-275.02497969,0.00026341,2]
[328412563,1717365042665,-209.29043191,0.00026342,2]
[328412564,1717365042674,-500.0,0.00026342,2]
[328412565,1717365042683,-500.0,0.00026342,2]
[328412566,1717365042692,-151.0,0.00026343,2]
[328412567,1717365042701,-151.0,0.00026343,2]
[328412568,1717365042710,-151.0,0.00026343,2]
[328412569,1717365042719,-257.440844,0.00026343,2]
[328412570,1717365042728,-151.0,0.00026343,2]
[328412571,1717365042737,-151.0,0.00026343,2]
[328412572,1717365042746,-151.0,0.00026343,2]
[328412573,1717365042755,-151.0,0.00026343,2]
[328412574,1717365042765,-151.0,0.00026343,7]
[328412575,1717365042774,-500.0,0.00026343,2]
[328412576,1717365042784,-9143.46025663,0.00026343,7]
[328412709,1717365046772,-353.76613322,0.000221,2]
[328412950,1717366237916,-188.9444,0.00020807,2]
[328412952,1717366237927,-2685.478655,0.00021,2]
[328412953,1717366237937,-5009.87035189,0.00021799,2]
[328412957,1717366237982,-499.77566816,0.00021799,2]
[328412959,1717366237995,-3088.61016769,0.00021799,2]
[328412961,1717366238008,-756.7513574,0.00021799,2]
[328412962,1717366238020,-1088.04783051,0.00021799,2]
[328412963,1717366238033,-12449.88552207,0.00021799,2]
[328412965,1717366238043,-3000.0,0.000218,2]
[328412967,1717366238054,-3000.0,0.0002181,2]
[328412968,1717366238064,-3000.0,0.0002182,2]
[328412969,1717366238075,-3064.078226,0.0002183,2]
[328412970,1717366238085,-166.666666,0.00021918,2]
[328412971,1717366238096,-623.8675752,0.000221,2]
[328412972,1717366238106,-166.666666,0.00022431,2]
[328412973,1717366238116,-166.666666,0.00022944,2]
[328412974,1717366238126,-154.9690062,0.00023455,2]
[328412975,1717366238142,-166.666666,0.00023456,2]
[328412976,1717366238153,-166.666666,0.00023969,2]
[328412977,1717366238163,-450.33368643,0.00024242,2]
[328412978,1717366238173,-762.03882805,0.000244,2]
[328412979,1717366238185,-166.666666,0.00024482,2]
[328412980,1717366238195,-150.95471359,0.00024713,4]
[328412981,1717366238207,-761.95780481,0.00025,2]
[328412982,1717366238217,-457.13252986,0.00025,2]
[328412983,1717366238228,-401.65010367,0.00025,2]
[328412984,1717366238239,-154.9690062,0.00025,2]
[328412985,1717366238250,-150.95471359,0.00025218,2]
[328412986,1717366238260,-204.985722,0.00025836,2]
[328412987,1717366238271,-153.0,0.00026088,2]
[328412988,1717366238281,-2653.13459933,0.0002615,2]
[328412989,1717366238330,-1580.02588851,0.0002615,2]
[328412990,1717366238341,-162.58607532,0.00026233,2]
[328412991,1717366238351,-382.93084775,0.00026243,2]
[328412992,1717366238599,-160.0,0.000263,2]
[328412993,1717366238613,-1306.77718842,0.00026333,3]
[328413014,1717366241421,-3424.43769009,0.00026333,3]
[328413135,1717367432281,-22892.94089772,0.00021799,2]
[328413136,1717367432291,-5633.426205,0.000218,2]
[328413137,1717367432300,-623.8675752,0.000221,2]
[328413138,1717367432310,-560.7179945,0.00022686,2]
[328413139,1717367432319,-13360.0499336,0.00022875,2]
[328413140,1717367432328,-990.7187053,0.00022903,2]
[328413142,1717367432338,-3732.5289965,0.00022944,2]
[328413144,1717367432347,-154.9690062,0.00023,2]
[328413146,1717367432356,-166.666666,0.00023163,2]
[328413148,1717367432365,-188.9444,0.00023261,2]
[328413151,1717367432375,-979.8085437,0.00023377,2]
[328413154,1717367432384,-166.666666,0.00023794,2]
[328413157,1717367432393,-300.22245762,0.00024133,2]
[328413160,1717367432403,-553.93460504,0.0002438,2]
[328413163,1717367432412,-166.666666,0.00024426,2]
[328413165,1717367432421,-151.0,0.0002448,2]
[328413167,1717367432432,-151.0,0.00024793,2]
[328413169,1717367432441,-151.0,0.00024793,2]
[328413172,1717367432453,-553.93460503,0.00024883,2]
[328413174,1717367432463,-154.9690062,0.00025,2]
[328413176,1717367432473,-153.0,0.00025014,2]
[328413178,1717367432482,-401.65010367,0.00025056,2]
[328413180,1717367432491,-166.666666,0.00025057,2]
[328413182,1717367432500,-553.93460503,0.00025385,2]
[328413183,1717367432510,-166.666666,0.00025689,2]
[328413185,1717367432519,-204.942387,0.00025836,2]
[328413187,1717367432528,-553.93460503,0.00025888,2]
[328413190,1717367432539,-4233.16048784,0.00026197,2]
[328413192,1717367432549,-160.0,0.000263,2]
[328413194,1717367432560,-151.0,0.0002632,2]
[328413196,1717367432571,-166.666666,0.0002632,2]
[328413197,1717367432581,-5581.16,0.00026323,3]
[328413199,1717367432590,-10642.9,0.00026331,3]
[328413201,1717367432599,-761.95780481,0.00026333,2]
[328413204,1717367432608,-457.13252986,0.00026333,2]
[328413206,1717367432617,-500.0,0.0002634,2]
[328413208,1717367432626,-500.0,0.0002634,2]
[328413210,1717367432635,-500.0,0.0002634,2]
[328413212,1717367432645,-500.0,0.0002634,2]
[328413214,1717367432654,-450.0418286,0.00026341,2]
[328413216,1717367432663,-297.94357556,0.00026341,2]
[328413218,1717367432672,-500.0,0.00026341,2]
[328413220,1717367432682,-229.06562148,0.00026341,2]
[328413222,1717367432691,-163.22850157,0.00026341,2]
[328413223,1717367432701,-284.24078638,0.00026341,2]
[328413225,1717367432710,-943.77454947,0.00026341,2]
[328413227,1717367432720,-1871.65252192,0.00026341,2]
[328413229,1717367432730,-187.07775165,0.00026341,2]
[328413231,1717367432739,-761.75049726,0.00026341,2]
[328413234,1717367432749,-10122.35564248,0.00026341,2]
[328413235,1717367432758,-11647.67239366,0.00026341,2]
[328413667,1717367438324,-500.0,0.0002634,2]
[328413668,1717367438334,-492.70483803,0.0002634,2]
[328413681,1717367442232,-596.98274629,0.00026333,3]
[328413691,1717367442307,-500.36449618,0.00026333,3]
[328413719,1717367446632,-642.22318542,0.00026333,3]
[328413869,1717367777188,1099.33919907,0.00015,2]
[328413870,1717367788557,6887.54679023,0.0002,2]
[328413871,1717367836282,6767.24518434,0.0002,2]
[328413874,1717368324574,923.07966814,0.00014,2]
[328413875,1717368368376,329.20616757,0.000189,2]
[328413878,1717368563152,224.89839615,0.0002,2]
[328413921,1717368632561,-19286.0396203,0.00020999,2]
[328413923,1717368632570,-3986.84838005,0.00021,2]
[328413925,1717368632579,-250.0,0.00021492,2]
[328413927,1717368632588,-204.761745,0.00021582,2]
[328413929,1717368632598,-150.0,0.000218,2]
[328413931,1717368632607,-166.666666,0.00021918,2]
[328413933,1717368632616,-166.666666,0.00022431,2]
[328413935,1717368632625,-623.8675752,0.00022453,2]
[328413937,1717368632634,-404.08687018,0.00022454,2]
[328413939,1717368632644,-5990.7319683,0.00022531,2]
[328414023,1717368638471,-7013.96835313,0.00022531,2]
[328414024,1717368638483,-468.12640148,0.00022531,2]
[328414025,1717368638497,-6096.53244821,0.00022531,2]
[328414027,1717368638508,-5330.64082888,0.00022531,2]
[328414029,1717368638519,-2312.7403899,0.00022712,2]
[328414030,1717368638530,-166.666666,0.00022944,2]
[328414032,1717368638539,-154.9690062,0.00023168,2]
[328414034,1717368638548,-165.630197,0.0002319,2]
[328414035,1717368638557,-166.666666,0.00023456,2]
[328414036,1717368638566,-404.08687014,0.00023508,2]
[328414037,1717368638575,-329.20616757,0.000239,2]
[328414038,1717368638583,-166.666666,0.00023969,2]
[328414039,1717368638592,-500.0,0.00024478,2]
[328414040,1717368638601,-166.666666,0.00024482,2]
[328414041,1717368638611,-216.58782673,0.00024594,2]
[328414042,1717368638620,-613.04,0.00024694,2]
[328414043,1717368638629,-154.9690062,0.00025,2]
[328414044,1717368638638,-401.65010367,0.00025012,2]
[328414045,1717368638647,-863.50424233,0.00025024,2]
[328414046,1717368638656,-62.46024258,0.00025043,2]
[328414158,1717368642702,-154.12758413,0.00025043,2]
[328414159,1717368642711,-216.58782671,0.00025492,2]
[328414160,1717368642720,-300.0,0.000255,2]
[328414161,1717368642730,-522.91,0.00025658,2]
[328414162,1717368642739,-150.95471359,0.00025706,2]
[328414163,1717368642748,-499.4598699,0.00025836,2]
[328414164,1717368642758,-216.58782671,0.00025941,2]
[328414165,1717368642767,-964.32254596,0.00026078,2]
[328414166,1717368642776,-950.81440912,0.00026133,2]
[328414167,1717368642788,-1281.10807788,0.00026133,2]
[328414168,1717368642799,-824.50436945,0.00026133,2]
[328414169,1717368642808,-621.34206491,0.000262,2]
[328414170,1717368642817,-300.0,0.000263,12]
[328414171,1717368642826,-160.0,0.000263,2]
[328414172,1717368642835,-761.95780481,0.00026333,2]
[328414173,1717368642845,-457.13252986,0.00026333,2]
[328414174,1717368642854,-461.58335744,0.00026333,2]
[328414175,1717368642863,-8579.15,0.00026333,3]
[328414176,1717368642872,-2859.3060158,0.00026333,3]
[328414177,1717368642884,-511.1056432,0.00026333,3]
[328414178,1717368642895,-3778.888341,0.00026333,3]
[328414179,1717368642903,-374.10996647,0.00026333,3]
[328414284,1717368678026,523.30690238,0.00019756,2]
[328414297,1717369198175,5337.98771213,0.0002,2]
[328414353,1717369832792,-212.44063085,0.000189,2]
[328414355,1717369832801,-623.8675752,0.000221,2]
[328414357,1717369832811,-212.44063085,0.000239,2]
[328414359,1717369832819,-307.142618,0.00024083,2]
[328414361,1717369832829,-1732.4717707,0.00024135,2]
[328414363,1717369832838,-164.793741,0.00024582,2]
[328414365,1717369832847,-154.9690062,0.00025041,2]
[328414367,1717369832856,-401.65010367,0.00025042,2]
[328414369,1717369832865,-457.13252986,0.00025043,2]
[328414371,1717369832874,-761.95780481,0.00025043,2]
[328414373,1717369832884,-395.37469964,0.00025043,2]
[328414375,1717369832896,-66.36988034,0.00025043,2]
[328414377,1717369832905,-166.666666,0.00025756,2]
[328414379,1717369832914,-292.065583,0.00025836,2]
[328414381,1717369832923,-292.065583,0.00025836,2]
[328414383,1717369832932,-292.065583,0.00025836,2]
[328414385,1717369832946,-422.16989063,0.000259,2]
[328414387,1717369832956,-2691.90432697,0.00026,2]
[328414389,1717369832965,-5614.39979587,0.00026,2]
[328414391,1717369832976,-3617.03056508,0.00026,2]
[328414800,1717369838651,-166.666666,0.0002352,2]
[328414801,1717369838661,-166.666666,0.00024161,2]
[328414802,1717369838670,-166.666666,0.00024802,2]
[328414803,1717369838680,-166.666666,0.00025443,2]
[328414804,1717369838689,-768.56963905,0.00026,2]
[328414805,1717369838699,-2784.38106365,0.00026,2]
[328414806,1717369838711,-1581.13137041,0.00026,2]
[328414807,1717369838722,-11989.0909499,0.00026,2]
[328414808,1717369838731,-816.25818779,0.00026,2]
[328414809,1717369838741,-4233.16048784,0.00026071,2]
[328414810,1717369838751,-166.666666,0.00026085,2]
[328414811,1717369838761,-306.0,0.0002611,2]
[328414812,1717369838770,-153.0,0.0002611,2]
[328414813,1717369838780,-153.0,0.0002611,2]
[328414814,1717369838790,-186.21982519,0.0002624,2]
[328414815,1717369838800,-186.21982517,0.00026256,2]
[328414816,1717369838810,-186.21982517,0.00026273,2]
[328414817,1717369838819,-186.21982517,0.00026289,2]
[328414818,1717369838829,-160.0,0.000263,2]
[328414819,1717369838838,-300.0,0.000263,12]
[328414820,1717369838847,-186.21982517,0.00026305,2]
[328414821,1717369838856,-3324.85994907,0.00026333,3]
[328415460,1717370870742,525.26787255,9.999e-05,2]
[328415461,1717370972127,187.15378643,9.999e-05,2]
[328415502,1717371032145,-159.91264356,0.000189,2]
[328415503,1717371032155,-10474.86061582,0.00019755,2]
[328415504,1717371032163,-977.36743668,0.00019756,2]
[328415505,1717371032173,-1102.70505763,0.0002,2]
[328415506,1717371032181,-159.91264356,0.000239,2]
[328415507,1717371032190,-250.0,0.00024005,2]
[328415508,1717371032199,-307.142619,0.00024058,2]
[328415509,1717371032208,-164.793736,0.00024245,2]
[328415510,1717371032217,-166.666666,0.00024261,2]
[328415511,1717371032225,-8000.9014753,0.00024448,2]
[328415512,1717371032234,-1127.9176166,0.00024588,2]
[328415513,1717371032243,-166.666666,0.00024923,2]
[328415514,1717371032252,-154.9690062,0.00025203,2]
[328415515,1717371032261,-401.65010367,0.00025204,2]
[328415516,1717371032270,-166.666666,0.00025584,2]
[328415518,1717371032279,-1346.0,0.00026,2]
[328415520,1717371032288,-13177.0,0.00026,2]
[328415522,1717371032297,-178.6278248,0.00026233,2]
[328415524,1717371032305,-527.82833493,0.00026244,2]
[328415526,1717371032314,-166.666666,0.00026246,2]
[328415528,1717371032323,-160.0,0.000263,2]
[328415530,1717371032333,-1960.48914078,0.00026315,2]
[328415532,1717371032343,-761.95780481,0.00026333,2]
[328415533,1717371032353,-457.13252986,0.00026333,2]
[328415535,1717371032364,-3709.2,0.00026333,3]
[328415537,1717371032374,-4723.05,0.00026333,3]
[328415539,1717371032383,-3935.88,0.00026333,3]
[328415541,1717371032392,-162.855202,0.00026341,2]
[328415544,1717371032401,-413.51849285,0.00026341,2]
[328415545,1717371032410,-528.99729379,0.00026341,2]
[328415547,1717371032419,-761.75049726,0.00026341,2]
[328415550,1717371032429,-6174.36563926,0.00026341,2]
[328416003,1717371038058,-2032.83974601,0.00026333,7]
[328416005,1717371038067,-500.0,0.0002634,2]
[328416007,1717371038076,-415.21724868,0.0002634,2]
[328416009,1717371038086,-6403.69190195,0.00026341,2]
[328416011,1717371038097,-4309.24514339,0.00026341,2]
[328416013,1717371038107,-253.9422939,0.00026341,2]
[328416259,1717371043306,-65.22819707,0.00026341,2]
[328416261,1717371043318,-547.29741802,0.00026341,2]
[328416263,1717371043330,-7638.36722664,0.00026341,2]
[328416265,1717371043342,-1900.92798858,0.00026341,2]
[328416268,1717371043354,-154.9690062,0.00026341,2]
[328416270,1717371043365,-3747.94659396,0.00026341,2]
[328416272,1717371043377,-491.62831605,0.00026341,2]
[328416274,1717371043389,-419.64975723,0.00026341,2]
[328416276,1717371043400,-249.46158333,0.00026341,2]
[328416279,1717371043412,-944.7008589,0.00026341,2]
[328416281,1717371043423,-500.0,0.00026343,2]
[328416283,1717371043435,-2188.51,0.00026343,14]
[328416285,1717371043446,-2188.51,0.00026343,14]
[328416287,1717371043457,-2188.51,0.00026343,14]
[328416289,1717371043468,-2188.51,0.00026343,14]
[328416291,1717371043480,-2188.51,0.00026343,14]
[328416294,1717371043492,-2188.51,0.00026343,14]
[328416296,1717371043503,-2188.51,0.00026343,14]
[328416298,1717371043513,-2188.51,0.00026343,14]
[328416326,1717371043780,-2188.51,0.00026343,14]
[328416328,1717371043793,-2188.51,0.00026343,14]
[328416330,1717371043803,-2188.51,0.00026343,14]
[328416332,1717371043813,-2188.51,0.00026343,14]
[328416334,1717371043822,-2188.51,0.00026343,14]
[328416336,1717371043831,-2188.51,0.00026343,14]
[328416338,1717371043840,-2188.51,0.00026343,14]
[328416340,1717371043850,-2188.51,0.00026343,14]
[328416342,1717371043860,-2188.51,0.00026343,14]
[328416344,1717371043872,-2188.51,0.00026343,14]
[328416346,1717371043882,-1999.45680733,0.00026343,14]
[328416572,1717371046567,-527.82833493,0.00026333,3]
[328423318,1717371306589,372.11026212,9.999e-05,2]
[328423379,1717372232159,-150.0,0.000189,2]
[328423381,1717372232168,-1872.29956246,0.00019999,2]
[328423383,1717372232177,-1162.16522664,0.0002,2]
[328423385,1717372232186,-34871.87886464,0.0002,2]
[328423387,1717372232195,-2535.36803418,0.00021496,2]